[Event "3rd Avagyan Memorial 2022"]
[Site "Jermuk"]
[Date "2022.06.21"]
[Round "2.3"]
[White "Petrosyan, Manuel"]
[Black "Donchenko, Alexander"]
[Result "1-0"]
[ECO "D38"]
[WhiteElo "2638"]
[BlackElo "2599"]
[Annotator "TA"]
[PlyCount "95"]
[EventDate "2022.06.20"]
[EventType "tourn"]
[EventCountry "ARM"]
[SourceTitle "playchess.com"]
[Source "ChessBase"]
[SourceQuality "1"]
[TimeControl "40/5400+30:1800+30"]

{[%evp 11,95,22,13,17,21,12,8,8,18,18,22,19,19,21,27,37,39,17,16,8,37,20,24,-9,168,169,197,214,160,117,93,79,122,94,91,107,85,102,92,116,93,-69,102,106,210,191,294,295,293,261,264,253,363,276,263,156,153,166,176,172,169,189,212,172,242,246,328,233,293,290,525,520,514,514,514,522,484,483,709,719,1108,1045,950,948,948,837]} 1. d4 {[%emt 0:00:52]} Nf6 {[%emt 0:00:11]} 2. c4 {[%emt 0:00:16]} e6 {[%emt 0:00:07]} 3. Nf3 {[%emt 0:00:17]} d5 {[%emt 0:00:16]} 4. Nc3 {[%emt 0:00:08]} Bb4 {[%emt 0:00:14]} 5. Qa4+ {[%emt 0:00:45]} Nc6 {[%emt 0:00:07]} 6. e3 {[%emt 0:00:05]} O-O {[%emt 0:00:21]} 7. Qc2 {[%emt 0:00:32] D38: Queen's Gambit Declined: Ragozin Defence (4 Nf3 Bb4).} Re8 {[%emt 0:00:30]} 8. Bd2 {[%emt 0:00:33]} Bf8 {[%emt 0:01:15] The main line 8...Bf8 scores better than 8...a6.} 9. Be2 {[%emt 0:00:30] The position is equal.} dxc4 {[%emt 0:04:39]} 10. Bxc4 {[%emt 0:00:22] [#]} b6 $146 {[%emt 0:00:37]} ({Predecessor:} 10... Nb4 11. Qb1 b6 12. O-O Bb7 13. Rd1 Qc8 14. a3 Nbd5 15. Bd3 c5 16. dxc5 Qxc5 17. Nxd5 Qxd5 {½-½ (33) Carlsen,M (2863)-Ding,L (2791) chess24.com INT 2020}) 11. a3 {[%emt 0:01:07]} Bb7 {[%emt 0:10:16]} 12. O-O {[%emt 0:00:19]} Na5 {[%emt 0:15:28]} 13. Bb5 {[%emt 0:11:27]} c6 {[%emt 0:00:26]} 14. Bd3 {[%emt 0:13:19]} (14. Be2 $5 {[%cal Rb2b4]} c5 15. dxc5 $14) 14... c5 {[%emt 0:00:09]} 15. dxc5 {[%emt 0:00:26]} bxc5 {[%emt 0:00:41]} (15... Nb3 $5 {[%cal Rb3a1]}) 16. Ng5 {[%emt 0:01:27][%cal Rd3h7]} g6 {[%emt 0:01:06]} 17. Nce4 {[%emt 0:08:02]} Be7 $2 {[%emt 0:05:40] [#]} (17... Nxe4 $11 {and Black has nothing to worry.} 18. Bxe4 (18. Nxe4 c4 $11) 18... Qxg5 19. Bxa5 Bxe4 20. Qxe4 Bg7) 18. Nxf7 $1 $18 {[%emt 0:08:31][%mdl 512]} Kxf7 {[%emt 0:03:49]} (18... Qd5 19. Nxf6+) 19. Ng5+ {[%emt 0:00:08]} Kg8 {[%emt 0:00:03][%cal Od8d5] ...Qd5! is the strong threat.} 20. Bxa5 {[%emt 0:07:22]} Qxa5 {[%emt 0:00:36] [#]} 21. Bxg6 $1 {[%emt 0:00:10]} Kh8 {[%emt 0:05:04] And now ...c4 would win.} (21... Rf8 22. Nxe6) 22. Bxh7 {[%emt 0:02:28] Nf7+ would kill now.} ({Reject} 22. Bxe8 $6 Rxe8 23. Nxe6 Qb6 $11) 22... Rf8 {[%emt 0:02:17][%cal Oc5c4] Inhibits Nf7+.} 23. Qg6 {[%emt 0:00:21] Black must now prevent Qh6.} c4 {[%emt 0:00:52][%cal Oa5f5] Strongly threatening ...Qf5!} 24. Nxe6 {[%emt 0:05:38][%csl Ge6][%cal Rg6g7]} Rg8 {[%emt 0:00:42] Inhibits Qg7+.} 25. Bxg8 $40 {[%emt 0:00:06][%mdl 128] Black is in trouble. Dancing on a razor blade. White is more active.} Rxg8 {[%emt 0:00:06]} 26. Qh6+ {[%emt 0:00:02]} Nh7 {[%emt 0:00:07][%mdl 1024] Black has compensation.} 27. Nf4 {[%emt 0:00:22] Hoping for Ng6+.} Qf5 {[%emt 0:07:27] [#] Against Ng6+} (27... Qg5 $16 28. Qxg5 Nxg5) 28. f3 $1 {[%emt 0:00:06]} Bg5 {[%emt 0:15:30]} (28... Bc5 $142 29. Rae1 Qf6 30. Qxf6+ Nxf6) 29. Qd6 {[%emt 0:01:27]} ({But not} 29. Qh5 $6 Bc6 30. Rfe1 Qf6 $18) 29... Bf6 {[%emt 0:01:03]} 30. Rf2 {[%emt 0:07:06]} Ng5 {[%emt 0:03:24]} 31. Kh1 {[%emt 0:00:10]} Ba8 {[%emt 0:07:33]} (31... Rc8 {might work better.} 32. Rc1 Nf7) 32. Raf1 {[%emt 0:02:39]} Nf7 {[%emt 0:10:23]} 33. Qe6 {[%emt 0:07:51]} (33. Qa6 $18) 33... Qxe6 $16 {[%emt 0:00:14]} 34. Nxe6 {[%emt 0:00:04]} Ne5 {[%emt 0:00:11]} 35. Rd2 {[%emt 0:07:46]} Rb8 {[%emt 0:02:27]} 36. Rc1 {[%emt 0:00:44]} Rb6 {[%emt 0:03:30]} 37. Nf4 {[%emt 0:03:53]} Rb8 {[%emt 0:01:07]} (37... Bb7 $142 38. h3 Bh4) 38. h3 {[%emt 0:01:14]} a5 {[%emt 0:00:29]} 39. Rcc2 {[%emt 0:01:57]} Bg7 {[%emt 0:00:31]} 40. Ne6 {[%emt 0:00:00]} Nxf3 $2 {[%emt 0:00:00]} (40... Bf6 41. e4 Rc8) 41. gxf3 $18 {[%emt 0:03:17] White is clearly winning.} Bxf3+ {[%emt 0:00:58]} 42. Kg1 {[%emt 0:01:02]} c3 {[%emt 0:00:49]} 43. bxc3 {[%emt 0:01:54]} Bf6 {[%emt 0:00:23]} 44. Rf2 {[%emt 0:02:07]} Rg8+ {[%emt 0:00:21]} (44... Be4 $142 45. Rcd2 Bxc3) 45. Kf1 {[%emt 0:00:33]} Be4 {[%emt 0:00:05] [#]} 46. Rxf6 $1 {[%emt 0:00:20]} Bxc2 {[%emt 0:00:08]} 47. Rh6+ {[%emt 0:00:17]} Bh7 {[%emt 0:00:02]} 48. h4 {[%emt 0:00:12] Weighted Error Value: White=0.13 (very precise) /Black=0.36} 1-0

[Event "3rd Avagyan Memorial 2022"]
[Site "Jermuk"]
[Date "2022.06.21"]
[Round "2.5"]
[White "Sargsyan, Shant"]
[Black "Gharibyan, Mamikon"]
[Result "1/2-1/2"]
[ECO "C82"]
[WhiteElo "2641"]
[BlackElo "2487"]
[Annotator "TA"]
[PlyCount "103"]
[EventDate "2022.06.20"]
[EventType "tourn"]
[EventCountry "ARM"]
[SourceTitle "playchess.com"]
[Source "ChessBase"]
[SourceQuality "1"]
[TimeControl "40/5400+30:1800+30"]

{[%evp 22,103,21,10,26,14,18,21,37,33,48,41,47,44,33,9,9,9,9,9,9,9,9,9,9,9,9,9,15,9,9,1,13,2,14,14,14,14,17,15,18,4,34,9,13,13,13,13,13,13,13,13,21,13,16,14,47,14,25,22,26,22,34,0,0,0,0,0,0,0,0,0,0,0,0,0,0,0,0,0,0,0,0,0]} 1. e4 {[%emt 0:02:54]} e5 {[%emt 0:00:18]} 2. Nf3 {[%emt 0:00:38]} Nc6 {[%emt 0:00:11]} 3. Bb5 {[%emt 0:00:09]} a6 {[%emt 0:00:09]} 4. Ba4 {[%emt 0:00:06]} Nf6 {[%emt 0:00:08]} 5. O-O {[%emt 0:00:11]} Nxe4 {[%emt 0:00:06]} 6. d4 {[%emt 0:00:53]} b5 {[%emt 0:00:08]} 7. Bb3 {[%emt 0:00:07]} d5 {[%emt 0:00:06]} 8. dxe5 {[%emt 0:00:27]} Be6 {[%emt 0:00:07]} 9. c3 {[%emt 0:00:58]} Bc5 {[%emt 0:00:15]} 10. Qe2 {[%emt 0:01:39]} O-O {[%emt 0:04:09]} 11. Be3 {[%emt 0:00:24]} Bxe3 {[%emt 0:11:40]} 12. Qxe3 {[%emt 0:00:10]} f5 {[%emt 0:15:08] C82: Open Ruy Lopez: 9 c3 without 9...Be7.} 13. exf6 {[%emt 0:05:21]} Qxf6 {[%emt 0:00:15]} 14. Nbd2 {[%emt 0:03:16]} Rae8 {[%emt 0:09:32]} 15. Rfe1 {[%emt 0:11:47] [#]} Na5 $146 {[%emt 0:23:09]} ({Predecessor:} 15... Nxd2 16. Qxd2 Ne7 17. Ng5 Bf7 18. Bc2 Nf5 19. a4 c6 20. Nxf7 Qxf7 21. Qf4 Rxe1+ 22. Rxe1 Nd6 {½-½ (22) Zlebcik,L (2469)-Bertino,G (2474) ICCF corr 2002}) 16. Nxe4 {[%emt 0:13:39]} dxe4 {[%emt 0:00:25]} 17. Bxe6+ {[%emt 0:01:03]} Qxe6 {[%emt 0:08:34]} 18. Ng5 {[%emt 0:01:30]} Qg6 {[%emt 0:01:57]} 19. b3 {[%emt 0:00:16][%cal Rg5e4] Against Nc4} Nb7 $1 {[%emt 0:01:08]} 20. Nxe4 {[%emt 0:00:58]} Nd6 {[%emt 0:00:05][%cal Rd6e4]} 21. f3 {[%emt 0:00:15]} Nxe4 {[%emt 0:00:27]} 22. fxe4 {[%emt 0:00:09]} Re5 {[%emt 0:00:16]} 23. Re2 {[%emt 0:01:10]} Rfe8 {[%emt 0:00:51][%cal Re5e4]} 24. Rae1 {[%emt 0:00:21]} c5 {[%emt 0:02:25]} 25. Qf4 {[%emt 0:05:03]} h6 {[%emt 0:00:59]} 26. Re3 {[%emt 0:01:29]} Qe6 {[%emt 0:01:00]} 27. Qf2 {[%emt 0:02:27]} Qg6 {[%emt 0:02:57]} 28. Qe2 {[%emt 0:01:35]} Qe6 {[%emt 0:01:35]} 29. h3 {[%emt 0:00:14]} Kh7 {[%emt 0:00:50]} 30. Kh1 {[%emt 0:01:27]} Kg8 {[%emt 0:01:12]} 31. Qd3 {[%emt 0:02:27]} Qc6 {[%emt 0:01:59]} 32. a3 {[%emt 0:06:02]} Qe6 {[%emt 0:05:43]} 33. c4 {[%emt 0:01:40]} bxc4 {[%emt 0:01:56]} 34. bxc4 {[%emt 0:00:05]} Qc6 {[%emt 0:00:35]} 35. Qc2 {[%emt 0:02:37]} Kh8 {[%emt 0:04:51]} 36. Qb2 {[%emt 0:02:11]} Qa4 {[%emt 0:01:41]} (36... Rxe4 37. Rxe4 Rxe4 38. Qb8+ Kh7 39. Qb1 $18) 37. Qc3 {[%emt 0:00:18]} Qc6 {[%emt 0:00:42]} 38. Rg3 {[%emt 0:00:34]} Kh7 {[%emt 0:00:56]} 39. Rg4 {[%emt 0:00:35]} (39. Rf1 $5 {[%cal Rf1f7]} Qd7 40. Rf5 $14) 39... Qd7 {[%emt 0:00:31]} 40. Qg3 {[%emt 0:00:00]} Qf7 {[%emt 0:00:00]} 41. Qd3 {[%emt 0:04:03]} Qe7 {[%emt 0:15:03]} 42. Qg3 {[%emt 0:14:49]} Rd8 {[%emt 0:01:50] The position is equal.} 43. Rg6 {[%emt 0:02:57]} Rd2 {[%emt 0:01:41]} 44. Qc3 {[%emt 0:04:21] aiming for Rxg7+.} ({Of course not} 44. Rxa6 Rg5 45. Qh2 Rgxg2 46. Qxg2 Rxg2 47. Kxg2 Qg5+ 48. Kf1 Qf4+ 49. Kg2 Qd2+ 50. Kf1 Qd3+ 51. Re2 Qxc4 $17) 44... Rd4 {[%emt 0:03:02]} ({Don't play} 44... Kxg6 45. Qxd2 Qf7 46. Qc2 $14) 45. Rxa6 {[%emt 0:02:37]} Rexe4 {[%emt 0:00:24]} 46. Qc2 {[%emt 0:01:23]} Rxc4 {[%emt 0:01:02]} 47. Qb1 {[%emt 0:00:05]} Rcd4 {[%emt 0:04:16]} 48. Rc6 {[%emt 0:02:22]} c4 {[%emt 0:00:31]} 49. a4 {[%emt 0:01:16]} Rd3 {[%emt 0:02:06]} 50. Rc1 {[%emt 0:01:15]} Qd7 {[%emt 0:03:13]} (50... Rb3 $5 51. Qc2 Rd3 52. Rxc4 Re1+ 53. Rxe1 Qxe1+ 54. Kh2 Qe5+ 55. Kh1 Qe1+ 56. Kh2 Qe5+ 57. Kh1 Qe1+ $11) 51. R6xc4 {[%emt 0:01:07]} Rxh3+ {[%emt 0:00:43]} 52. gxh3 {[%emt 0:00:37] Weighted Error Value: White=0.05 (flawless) /Black=0.04 (flawless)} 1/2-1/2

[Event "3rd Avagyan Memorial 2022"]
[Site "Jermuk"]
[Date "2022.06.22"]
[Round "3.1"]
[White "Gharibyan, Mamikon"]
[Black "Niemann, Hans Moke"]
[Result "0-1"]
[ECO "E94"]
[WhiteElo "2487"]
[BlackElo "2656"]
[Annotator "TA"]
[PlyCount "84"]
[EventDate "2022.06.20"]
[EventType "tourn"]
[EventCountry "ARM"]
[SourceTitle "playchess.com"]
[Source "ChessBase"]
[SourceQuality "1"]
[TimeControl "40/5400+30:1800+30"]

{[%evp 15,84,39,40,30,51,55,59,48,58,54,55,43,74,50,69,34,70,37,37,40,44,41,46,37,36,37,18,0,0,-14,-16,-28,-13,-16,-19,-36,0,-38,-46,-48,-59,-54,-37,-33,-27,-64,0,0,0,-156,-51,-85,0,0,0,0,-32,-308,-235,-458,-262,-287,-281,-266,-294,-267,-249,-355,-343,-397,-393]} 1. d4 {[%emt 0:00:03]} Nf6 {[%emt 0:00:30]} 2. c4 {[%emt 0:00:10]} g6 {[%emt 0:00:16]} 3. Nc3 {[%emt 0:00:14]} Bg7 {[%emt 0:00:08]} 4. e4 {[%emt 0:00:13]} d6 {[%emt 0:00:07]} 5. Nf3 {[%emt 0:00:59][%cal Bg1f3,Bf3e1,Be1d3][%mdl 32]} O-O {[%emt 0:00:15]} 6. Be2 {[%emt 0:00:07]} e5 {[%emt 0:00:08]} 7. O-O {[%emt 0:00:21]} Bg4 {[%emt 0:00:08]} 8. d5 {[%emt 0:01:25]} a5 {[%emt 0:00:07]} 9. Ne1 {[%emt 0:20:33] E94: King's Indian: Classical: 6 Be2 e5 7 0-0: Various Black 7th moves.} Bd7 {[%emt 0:00:14]} 10. Nd3 {[%emt 0:00:56]} Na6 {[%emt 0:00:17]} 11. Bg5 {[%emt 0:22:38] White is slightly better.} h6 {[%emt 0:01:51]} 12. Be3 {[%emt 0:01:42]} b6 {[%emt 0:00:06]} 13. Qd2 {[%emt 0:02:27]} Kh7 {[%emt 0:00:17] [#]} 14. Rae1 $146 {[%emt 0:06:53]} ({Predecessor:} 14. f4 exf4 15. Rxf4 Qe7 16. Raf1 g5 17. R4f2 Rae8 18. Bf3 Ng4 19. Bxg4 Bxg4 20. h3 {0-1 (30) Vogel,R (2452)-Erigaisi,A (2632) Wijk aan Zee 2022}) 14... Qe7 {[%emt 0:04:09]} 15. Bd1 {[%emt 0:04:33]} Nc5 {[%emt 0:02:23]} 16. Nxc5 {[%emt 0:01:22]} bxc5 {[%emt 0:00:13]} 17. f4 {[%emt 0:02:31]} exf4 {[%emt 0:00:20]} 18. Bxf4 {[%emt 0:00:07] aiming for e5.} Ng8 {[%emt 0:01:53]} 19. a4 {[%emt 0:05:57]} Be5 {[%emt 0:01:00]} 20. Kh1 {[%emt 0:06:24]} Kg7 {[%emt 0:02:29]} 21. Ne2 {[%emt 0:02:53]} Bg4 {[%emt 0:04:51]} 22. Nc1 {[%emt 0:07:38]} Bxd1 {[%emt 0:00:15]} 23. Qxd1 {[%emt 0:01:45]} Bxb2 {[%emt 0:02:59]} 24. Nd3 {[%emt 0:00:33]} Bc3 {[%emt 0:00:08]} 25. Re2 {[%emt 0:00:45]} f6 {[%emt 0:02:59]} 26. Bd2 {[%emt 0:03:43]} Bxd2 {[%emt 0:00:25]} 27. Qxd2 {[%emt 0:00:07]} g5 $1 {[%emt 0:00:02] Prevents Nf4.} 28. Qc3 {[%emt 0:01:29][%cal Oh2h4]} Qd7 {[%emt 0:00:45]} 29. Rb2 {[%emt 0:02:14]} Rfe8 {[%emt 0:01:07]} (29... Qxa4 $2 30. Rb5 $18) 30. Nf2 {[%emt 0:01:06][%cal Bd3f2,Bf2g4,Bg4e3,Be3f5][%mdl 32]} Qxa4 {[%emt 0:05:25]} (30... Reb8 $1 $15) 31. Ng4 $11 {[%emt 0:00:18][%cal Rg4f6]} Rf8 {[%emt 0:00:08] Threatens to win with ...Qe8.} (31... Rxe4 $2 32. Nxf6 Re5 33. Ng4 $18) 32. h4 $2 {[%emt 0:00:53] [#]} (32. Rb5 $1 $11 h5 33. Ne3 (33. Ra1 $2 Qb4 $19)) 32... Qd7 {[%emt 0:00:55]} (32... gxh4 33. Rb5 Qa2 34. Rb2 $11) (32... Qe8 $1 $17 {[%cal Re8e4]} 33. Ne3 Kh8 34. hxg5 hxg5) 33. Ne3 $1 $15 {[%emt 0:02:23]} Rae8 {[%emt 0:01:30]} (33... a4 $17) 34. hxg5 {[%emt 0:00:12]} hxg5 {[%emt 0:00:17] And now ...Nh6 would win.} 35. Nf5+ {[%emt 0:00:53]} Kg6 {[%emt 0:00:06] Strongly threatening ...Nh6.} 36. Qxa5 $2 {[%emt 0:01:29][%mdl 8192] [#] This move loses the game for White.} ({White should try} 36. Kg1 $15) 36... Nh6 {[%emt 0:03:11]} 37. Rb7 $2 {[%emt 0:00:31]} (37. Nxh6 {was called for.} Rxe4 38. Qc3 (38. Nf5 $2 Rh8+ 39. Kg1 Qh7 $19) 38... Rh4+ 39. Kg1 Rxh6 40. Rbf2) 37... Rf7 {[%emt 0:01:07]} (37... Rxe4 $142 38. Rxc7 Qxf5 39. Rxf5 Nxf5) 38. Qc3 {[%emt 0:00:31]} Nxf5 {[%emt 0:01:19]} (38... Rxe4 39. Qc2 Qxf5 40. Rxf5 Rh4+ 41. Kg1 Nxf5 42. Rb8 $15) 39. exf5+ {[%emt 0:00:07]} Kg7 {[%emt 0:00:04]} 40. Kg1 {[%emt 0:00:00]} Rfe7 {[%emt 0:00:00]} 41. Qf3 {[%emt 0:07:49]} (41. Qa5 $142) 41... Rh8 $19 {[%emt 0:01:21]} 42. Rbb1 {[%emt 0:05:49]} Qe8 {[%emt 0:00:13] Weighted Error Value: White=0.42/Black=0.21 (precise)} 0-1

[Event "3rd Avagyan Memorial 2022"]
[Site "Jermuk"]
[Date "2022.06.22"]
[Round "3.2"]
[White "Nihal Sarin"]
[Black "Sargsyan, Shant"]
[Result "1/2-1/2"]
[ECO "C47"]
[WhiteElo "2646"]
[BlackElo "2641"]
[Annotator "TA"]
[PlyCount "34"]
[EventDate "2022.06.20"]
[EventType "tourn"]
[EventCountry "ARM"]
[SourceTitle "playchess.com"]
[Source "ChessBase"]
[SourceQuality "1"]
[TimeControl "40/5400+30:1800+30"]

{[%evp 17,20,-4,3,0,-4]} 1. e4 {[%emt 0:00:51]} e5 {[%emt 0:02:11]} 2. Nf3 {[%emt 0:00:06]} Nc6 {[%emt 0:00:36]} 3. Nc3 {[%emt 0:00:49]} Nf6 {[%emt 0:00:15]} 4. d4 {[%emt 0:00:07]} exd4 {[%emt 0:00:25]} 5. Nxd4 {[%emt 0:00:06]} Bb4 {[%emt 0:00:08]} 6. Nxc6 {[%emt 0:00:06]} bxc6 {[%emt 0:00:06]} 7. Bd3 {[%emt 0:00:04]} d5 {[%emt 0:00:54]} 8. exd5 {[%emt 0:00:08]} O-O {[%emt 0:00:04] now supersedes 8...cxd5.} 9. O-O {[%emt 0:00:07]} cxd5 {[%emt 0:00:28]} 10. h3 {[%emt 0:00:26] C47: Scotch Four Knights and Four Knights with 4 g3.} c6 {[%emt 0:01:01] [#] A rather calm draw.} {Predecessor:} 11. Qf3 $146 Re8 12. Bf4 Bd6 13. Ne2 Rb8 14. b3 Be6 15. Rfd1 Bxf4 16. Nxf4 Qd7 17. c4 d4 {½-½ (38) Xiong,J (2685)-Alekseenko,K (2698) Chess.com INT 2022} 1/2-1/2

[Event "3rd Avagyan Memorial 2022"]
[Site "Jermuk"]
[Date "2022.06.22"]
[Round "3.3"]
[White "Donchenko, Alexander"]
[Black "Martirosyan, Haik M."]
[Result "1/2-1/2"]
[ECO "A06"]
[WhiteElo "2599"]
[BlackElo "2652"]
[Annotator "TA"]
[PlyCount "51"]
[EventDate "2022.06.20"]
[EventType "tourn"]
[EventCountry "ARM"]
[SourceTitle "playchess.com"]
[Source "ChessBase"]
[SourceQuality "1"]
[TimeControl "40/5400+30:1800+30"]

{[%evp 9,51,9,44,36,36,11,13,0,30,-5,8,-8,0,-12,-9,-21,-9,-62,-39,-28,-25,-49,-26,-41,0,0,3,0,4,0,0,0,0,-16,0,0,0,0,-12,-14,0,0,0,0]} 1. Nf3 {[%emt 0:00:03]} d5 {[%emt 0:00:16]} 2. e3 {[%emt 0:00:09]} c5 {[%emt 0:00:53]} 3. b3 {[%emt 0:00:23]} g6 {[%emt 0:02:25]} 4. Bb2 {[%emt 0:02:47]} Nf6 {[%emt 0:00:06]} 5. c4 {[%emt 0:09:36]} Bg7 {[%emt 0:00:21]} 6. cxd5 {[%emt 0:00:21] A06: Réti Opening: 1 Nf3 d5.} Qxd5 {[%emt 0:00:09]} 7. Bb5+ {[%emt 0:07:39]} Bd7 {[%emt 0:10:35]} 8. Nc3 {[%emt 0:01:06] [#]} Qd6 $146 {[%emt 0:02:42]} ({Predecessor:} 8... Qh5 9. O-O O-O 10. Be2 Nc6 11. Rc1 Qh6 12. Nb5 b6 13. d4 cxd4 14. Nbxd4 Rfd8 {0-1 (40) Steinle,C (2174)-Baerwolf,S (2087) Dortmund 2015}) 9. Ne4 {[%emt 0:13:17]} Qb6 {[%emt 0:01:45]} 10. Bc4 {[%emt 0:00:47]} O-O {[%emt 0:01:14]} 11. Nxf6+ {[%emt 0:01:07]} Bxf6 {[%emt 0:00:48]} 12. Ne5 {[%emt 0:01:41]} Be6 {[%emt 0:05:33]} 13. Qf3 {[%emt 0:10:32]} ({White should play} 13. O-O $11) 13... Qc7 {[%emt 0:20:47]} (13... Qd6 {keeps more tension.} 14. Qxb7 Bxe5 15. Bxe5 Qxe5 16. d4 cxd4 17. Qxa8 Bxc4 18. bxc4 Qa5+) 14. Qg3 {[%emt 0:01:38][%cal Oe5g4]} Qd6 {[%emt 0:02:02]} 15. Bc3 {[%emt 0:13:50]} Bxc4 {[%emt 0:08:28]} (15... Nd7 {seems wilder.} 16. Nxd7 Qxd7 17. Bxf6 exf6 18. Qh4 Rfd8) 16. Nxc4 {[%emt 0:00:30]} Qxg3 {[%emt 0:01:19]} 17. hxg3 {[%emt 0:00:05] The position is equal.} Nd7 {[%emt 0:00:27][%cal Bb8d7,Bd7f6,Bf6e4][%mdl 32]} 18. g4 {[%emt 0:01:17]} Rfd8 {[%emt 0:01:29]} 19. Rc1 {[%emt 0:02:30][%cal Ba1c1,Bc1c3,Bc3c2][%mdl 32]} Bxc3 {[%emt 0:01:49]} 20. Rxc3 {[%emt 0:00:46]} Nf6 {[%emt 0:01:31]} 21. Ne5 {[%emt 0:05:38]} Ne4 {[%emt 0:04:19][%csl LRc3,LRd2]} 22. Rc2 {[%emt 0:01:35]} Rd5 {[%emt 0:00:27]} 23. Nf3 {[%emt 0:00:37]} Rad8 {[%emt 0:02:40]} 24. Ke2 {[%emt 0:01:10]} Kg7 {[%emt 0:01:15]} 25. Rb1 {[%emt 0:03:14]} h6 {[%emt 0:06:21]} 26. Rbb2 {[%emt 0:01:06] Weighted Error Value: White=0.11 (very precise) /Black=0.09 (flawless)} 1/2-1/2

[Event "3rd Avagyan Memorial 2022"]
[Site "Jermuk"]
[Date "2022.06.22"]
[Round "3.4"]
[White "Nguyen, Thai Dai Van"]
[Black "Petrosyan, Manuel"]
[Result "1/2-1/2"]
[ECO "E05"]
[WhiteElo "2612"]
[BlackElo "2638"]
[Annotator "TA"]
[PlyCount "106"]
[EventDate "2022.06.20"]
[EventType "tourn"]
[EventCountry "ARM"]
[SourceTitle "playchess.com"]
[Source "ChessBase"]
[SourceQuality "1"]
[TimeControl "40/5400+30:1800+30"]

{[%evp 18,106,15,9,4,0,0,0,-2,-10,-9,-7,7,-22,0,0,0,0,20,31,25,30,43,43,37,0,42,0,0,0,0,0,0,0,0,0,0,0,0,0,0,0,0,0,0,0,0,0,0,0,0,0,0,0,0,0,0,0,0,0,0,0,16,0,0,0,0,0,0,0,0,0,0,0,0,0,0,0,0,0,0,0,0,0,0,0,0,0,25,50,58]} 1. c4 {[%emt 0:00:22] Krasenkow,Michal} Nf6 {[%emt 0:05:32]} 2. Nf3 {[%emt 0:00:21]} e6 {[%emt 0:00:27]} 3. g3 {[%emt 0:00:08]} d5 {[%emt 0:00:39]} 4. Bg2 {[%emt 0:00:07]} Be7 {[%emt 0:02:57]} 5. d4 {[%emt 0:00:16]} O-O {[%emt 0:00:17]} 6. O-O {[%emt 0:00:14]} dxc4 {[%emt 0:00:10]} 7. Qc2 {[%emt 0:00:11]} a6 {[%emt 0:00:31]} 8. a4 {[%emt 0:01:31]} Bd7 {[%emt 0:00:40]} 9. Qxc4 {[%emt 0:00:28]} Bc6 {[%emt 0:00:11]} 10. Bf4 {[%emt 0:01:24]} Bd6 {[%emt 0:01:34] E05: Open Catalan: 5 Nf3 Be7.} 11. Nc3 {[%emt 0:00:25]} Bxf4 {[%emt 0:08:46]} 12. gxf4 {[%emt 0:00:09]} a5 {[%emt 0:00:14] The position is equal.} 13. Ne5 {[%emt 0:00:49]} Bxg2 {[%emt 0:01:36]} 14. Kxg2 {[%emt 0:00:08] [#]} Nc6 $146 {[%emt 0:05:44]} ({Predecessor:} 14... c6 15. e3 Na6 16. Kh1 Nd5 17. Rg1 f6 18. Nd3 Rf7 19. Ne4 Kh8 20. Rg3 Re7 {1-0 (48) Fedoseev,V (2687)-Salgado Lopez,I (2599) Tornelo INT 2021 CBM 202 Extra [Krasenkow,Michal]}) 15. Rad1 {[%emt 0:23:51]} Nd5 {[%emt 0:08:58]} 16. Nxd5 {[%emt 0:01:06]} exd5 {[%emt 0:00:44]} 17. Nxc6 {[%emt 0:22:06]} Qd6 {[%emt 0:01:33] [#]} 18. Qc2 {[%emt 0:00:19] And now Ne5 would win.} bxc6 {[%emt 0:00:22]} 19. e3 {[%emt 0:00:07]} Rfb8 {[%emt 0:03:08]} 20. h3 {[%emt 0:08:40]} Rb4 {[%emt 0:04:39]} 21. Rc1 {[%emt 0:06:45]} Ra6 {[%emt 0:03:54]} (21... Rc4 $5 {[%cal Rc4c2]} 22. Qb3 Rb4 $11) 22. Qf5 {[%emt 0:01:41]} Qg6+ {[%emt 0:06:00]} 23. Qxg6 {[%emt 0:00:07]} hxg6 $11 {[%emt 0:00:03][%mdl 4096] Endgame KRR-KRR} 24. Rc2 {[%emt 0:00:08]} Rxa4 {[%emt 0:02:45]} 25. Rfc1 {[%emt 0:00:08]} Rb6 $1 {[%emt 0:00:27]} 26. Rxc6 {[%emt 0:00:11]} Rxb2 {[%emt 0:00:08]} 27. Rxc7 {[%emt 0:00:26]} Raa2 {[%emt 0:00:11]} 28. Rf1 {[%emt 0:00:06]} a4 {[%emt 0:06:08]} 29. Rc5 {[%emt 0:02:09][%cal Bc7c5,Bc5a5,Ba5a8][%mdl 32]} Re2 {[%emt 0:10:13]} 30. Kg3 {[%emt 0:17:08]} a3 {[%emt 0:00:21]} 31. Ra5 {[%emt 0:00:05]} Rec2 {[%emt 0:05:55]} 32. Ra8+ {[%emt 0:00:42]} Kh7 {[%emt 0:00:01]} 33. Ra7 {[%emt 0:00:18]} Kg8 {[%emt 0:06:22]} 34. Ra8+ {[%emt 0:03:48]} Kh7 {[%emt 0:00:06]} 35. Kf3 {[%emt 0:00:02]} f6 {[%emt 0:07:06]} 36. Kg3 {[%emt 0:02:44]} Rd2 {[%emt 0:01:51]} 37. Ra7 $1 {[%emt 0:01:44]} Rdc2 {[%emt 0:01:01]} 38. h4 {[%emt 0:00:20]} Kg8 {[%emt 0:01:48]} 39. Kf3 {[%emt 0:02:34]} Kf8 {[%emt 0:00:47]} 40. Kg2 {[%emt 0:00:00]} Kg8 {[%emt 0:00:00]} 41. Kg3 {[%emt 0:04:30]} f5 {[%emt 0:10:00]} 42. Ra5 {[%emt 0:07:42]} Kf8 {[%emt 0:04:27]} 43. Ra8+ {[%emt 0:07:29]} Ke7 {[%emt 0:00:12]} 44. Ra7+ {[%emt 0:00:41]} Kf8 {[%emt 0:01:49]} 45. Kf3 {[%emt 0:01:59]} Rd2 {[%emt 0:01:09]} 46. Kg2 {[%emt 0:00:32]} Re2 {[%emt 0:00:28]} 47. Kg3 {[%emt 0:00:47] [#] Hoping for Rc1.} Rec2 {[%emt 0:00:15] Prevents Rc1.} 48. Ra8+ {[%emt 0:01:04]} Ke7 {[%emt 0:00:22]} 49. Ra6 {[%emt 0:00:38]} Kf7 {[%emt 0:02:24]} 50. Kf3 {[%emt 0:00:39]} Rd2 {[%emt 0:01:11]} 51. Ra5 {[%emt 0:00:18]} Ke7 {[%emt 0:02:46]} 52. Ra8 {[%emt 0:00:59]} Ke6 {[%emt 0:01:50]} 53. Ra7 {[%emt 0:00:17]} Kf6 $1 {[%emt 0:00:16] Weighted Error Value: White=0.03 (flawless) /Black=0.03 (flawless)} 1/2-1/2